bitfinex-derivatives/quotes_SOLF0:USTF0_20250609
["timestamp","ask_amount","ask_price","bid_price","bid_amount"]
[1749492037853,0.04782058,156.27,156.24,0.04835024]
[1749492038648,0.04782058,156.27,156.26,6.3959]
[1749492040152,2.058e-05,156.27,156.26,14.0003517]
[1749492041045,5.4102099,156.34,156.32,6.3932]
[1749492041352,5.40914348,156.34,156.32,6.3932]
[1749492041751,36.6516,156.35,156.31,6.3937]
[1749492041954,5.40936315,156.34,156.31,6.3937]
[1749492042145,11.8464653,156.34,156.31,6.44208841]
[1749492042350,0.04450215,156.34,156.31,6.44208841]
[1749492042853,0.04450215,156.34,156.31,0.04838841]
[1749492043047,6.3931,156.33,156.31,0.04838841]
[1749492043247,0.04450215,156.34,156.31,0.04838841]
[1749492043447,5.45431942,156.34,156.31,0.04838841]
[1749492043644,11.84711942,156.34,156.31,6.44218841]
[1749492043951,6.43730215,156.34,156.31,6.44218841]
[1749492044148,0.04450215,156.34,156.31,0.04838841]
[1749492044454,11.84723115,156.34,156.31,6.44208841]
[1749492044752,0.04450215,156.34,156.31,0.04838841]
[1749492044950,11.81891045,156.33,156.31,0.04838841]
[1749492045155,5.42561045,156.33,156.31,0.04838841]
[1749492046054,0.04450215,156.34,156.31,0.04838841]
[1749492046258,6.3934,156.32,156.31,0.04838841]
[1749492051561,11.79745933,156.32,156.31,0.04838841]
[1749492051760,6.3934,156.32,156.31,0.04838841]
[1749492051955,11.79745933,156.32,156.31,0.04838841]
[1749492052156,6.3934,156.32,156.31,0.04838841]
[1749492052456,11.79915086,156.32,156.31,0.04838841]
[1749492052759,6.3934,156.32,156.31,0.04838841]
[1749492053457,6.3932,156.33,156.31,0.04838841]
[1749492053661,11.79910829,156.33,156.31,0.04838841]
[1749492053954,6.3932,156.33,156.31,0.04838841]
[1749492054158,6.43730215,156.34,156.31,6.44198841]
[1749492055249,0.04450215,156.34,156.31,0.04838841]
[1749492056164,0.04450215,156.34,156.32,7.6044517]
[1749492056360,0.04450215,156.34,156.33,6.393]
[1749492060362,32.36,156.41,156.33,32.36]
[1749492060663,5.41628119,156.4,156.35,7.6044517]
[1749492060856,5.41628119,156.39,156.35,7.6044517]
[1749492061059,6.3903,156.4,156.35,7.6044517]
[1749492061060,6.3903,156.4,156.38,6.391]
[1749492061368,11.80672705,156.39,156.37,0.04835739]
[1749492061565,6.3906,156.39,156.37,0.04835739]
[1749492062666,5.41951814,156.4,156.37,0.04835739]
[1749492062863,5.41983882,156.4,156.37,0.04835739]
[1749492063572,6.43070179,156.41,156.37,0.04835739]
[1749492063862,0.04070179,156.41,156.37,7.65280909]
[1749492064064,5.46002231,156.41,156.37,7.65280909]
[1749492064257,0.04070179,156.41,156.37,0.04835739]
[1749492064461,6.3908,156.39,156.37,0.04835739]
[1749492064662,13.02246372,156.4,156.37,0.04835739]
[1749492064862,5.41801202,156.39,156.37,0.04835739]
[1749492065063,7.6044517,156.4,156.37,0.04835739]
[1749492065064,6.391,156.38,156.37,0.04835739]
[1749492065457,11.82377928,156.38,156.37,0.04835739]
[1749492066973,13.03723098,156.38,156.3,408.1844517]
[1749492067165,5.43277928,156.37,156.3,408.1844517]
[1749492067472,6.3928,156.34,156.31,6.3936]
[1749492068072,6.43596641,156.34,156.31,6.43973003]
[1749492068670,0.04316641,156.34,156.31,0.04613003]
[1749492069070,6.3933,156.33,156.31,6.43993003]
[1749492069769,6.3933,156.33,156.31,0.04613003]
[1749492069975,6.3934,156.32,156.31,0.04613003]
[1749492070472,6.3932,156.33,156.31,0.04613003]
[1749492071177,6.3934,156.32,156.31,0.04613003]
[1749492073974,11.82010996,156.33,156.31,0.04613003]
[1749492074174,0.04316641,156.34,156.31,0.04613003]
[1749492074378,5.42748794,156.33,156.31,0.04613003]
[1749492074570,0.04316641,156.34,156.31,0.04613003]
[1749492074770,5.42905975,156.33,156.31,0.04613003]
[1749492074970,0.04316641,156.34,156.31,0.04613003]
[1749492075174,5.42597126,156.33,156.31,0.04613003]
[1749492075472,0.04316641,156.34,156.31,0.04613003]
[1749492075782,5.42623326,156.33,156.31,0.04613003]
[1749492076074,6.393,156.33,156.31,0.04613003]
[1749492076671,6.393,156.33,156.31,6.43993003]
[1749492077277,6.393,156.33,156.31,0.04613003]
[1749492081888,11.82102449,156.32,156.31,0.04613003]
[1749492086978,5.42762449,156.32,156.31,0.04613003]
[1749492088473,11.82102449,156.32,156.31,0.04613003]
[1749492088679,5.42762449,156.32,156.31,6.44003003]
[1749492088878,0.04316641,156.34,156.31,0.04613003]
[1749492089184,5.4326295,156.33,156.31,0.04613003]
[1749492089379,5.43281953,156.32,156.31,0.04613003]
[1749492089784,6.3932,156.33,156.31,0.04613003]
[1749492091980,6.3932,156.33,156.31,6.43993003]
[1749492092185,0.04316641,156.34,156.31,0.04613003]
[1749492092385,5.43346107,156.33,156.31,0.04613003]
[1749492092688,6.3933,156.33,156.31,0.04613003]
[1749492092988,5.43340611,156.32,156.31,0.04613003]
[1749492093687,6.3933,156.33,156.31,6.43993003]
[1749492094091,6.43596641,156.34,156.31,6.43993003]
[1749492094291,5.43413362,156.33,156.31,6.43993003]
[1749492094583,0.04316641,156.34,156.32,32.34]
[1749492094779,0.04316641,156.34,156.33,7.6044517]
[1749492095584,0.04316641,156.34,156.33,13.9974517]
[1749492097184,6.3909,156.39,156.33,7.6044517]
[1749492097390,5.43152503,156.38,156.35,7.6044517]
[1749492097585,6.3909,156.39,156.35,7.6044517]
[1749492097896,5.43253639,156.38,156.36,6.3916]
[1749492098083,6.43633616,156.39,156.36,6.3916]
[1749492098281,5.43182211,156.38,156.36,6.3916]
[1749492098485,6.43633616,156.39,156.36,6.3916]
[1749492098785,5.43227187,156.38,156.37,6.3914]
[1749492099090,0.04543616,156.39,156.37,6.3914]
[1749492099392,0.04543616,156.39,156.37,7.6044517]
[1749492099779,6.43613616,156.39,156.37,7.6044517]
[1749492099985,0.04543616,156.39,156.37,7.6044517]
[1749492100281,0.04543616,156.39,156.37,13.9955517]
[1749492100488,0.04543616,156.39,156.37,7.6044517]
[1749492100992,0.04543616,156.39,156.38,6.391]
[1749492102786,0.04543616,156.39,156.36,39.9444517]
[1749492102992,0.04543616,156.39,156.36,32.34]
[1749492103195,7.64988786,156.39,156.35,0.04875998]
[1749492103492,6.3918,156.36,156.35,0.04875998]
[1749492103888,5.4402624,156.36,156.3,32.34]
[1749492104082,5.44002052,156.35,156.3,32.34]
[1749492104282,9.7481517,156.37,156.31,6.3936]
[1749492104486,5.44019482,156.36,156.31,7.6044517]
[1749492104683,39.9444517,156.39,156.33,7.6044517]
[1749492104889,5.48891518,156.38,156.34,0.04812889]
[1749492105084,5.44097239,156.37,156.34,6.44062889]
[1749492105287,0.04794279,156.38,156.34,6.44062889]
[1749492105486,5.44108209,156.37,156.34,6.44062889]
[1749492105686,0.04794279,156.38,156.34,6.44062889]
[1749492105885,5.44127058,156.37,156.34,6.44062889]
[1749492106093,0.04794279,156.38,156.34,6.44062889]
[1749492106294,5.44145444,156.37,156.34,6.44062889]
[1749492106490,6.3915,156.37,156.34,6.44062889]
[1749492106697,0.04794279,156.38,156.34,6.44062889]
[1749492106898,5.43956842,156.37,156.34,6.44062889]
[1749492107097,0.04794279,156.38,156.34,6.44062889]
[1749492107299,11.83189387,156.37,156.34,6.44062889]
[1749492107498,6.3918,156.37,156.34,6.44062889]
[1749492107698,6.43914279,156.38,156.35,6.3922]
[1749492107898,5.44020608,156.37,156.34,0.04812889]
[1749492108100,0.04794279,156.38,156.34,0.04812889]
[1749492108298,5.44094213,156.37,156.34,0.04812889]
[1749492108499,6.3916,156.37,156.34,0.04812889]
[1749492108901,6.3916,156.37,156.34,6.44062889]
[1749492109401,6.392,156.36,156.34,6.44062889]
[1749492109602,6.392,156.36,156.34,0.04812889]
[1749492110505,6.392,156.36,156.34,6.44072889]
[1749492110706,6.3922,156.35,156.34,0.04812889]
[1749492117913,11.82237333,156.35,156.34,0.04812889]
[1749492123220,19.42682503,156.35,156.34,2.889e-05]
[1749492123419,51.74682503,156.35,156.34,2.889e-05]
[1749492125019,44.14237333,156.35,156.34,2.889e-05]
[1749492125215,51.74682503,156.35,156.34,2.889e-05]
[1749492125420,44.14237333,156.35,156.34,2.889e-05]
[1749492127420,44.13583348,156.35,156.34,2.889e-05]
[1749492130727,0.04794279,156.38,156.34,2.889e-05]
[1749492131023,5.42619159,156.37,156.34,2.889e-05]
[1749492131322,6.43914279,156.38,156.35,6.3922]
[1749492131529,5.42606589,156.37,156.35,6.3922]
[1749492131725,6.43914279,156.38,156.34,2.889e-05]
[1749492132027,11.81681791,156.37,156.34,2.889e-05]
[1749492132222,0.04794279,156.38,156.34,2.889e-05]
[1749492132420,5.42581268,156.37,156.35,6.392]
[1749492132624,6.43914279,156.38,156.35,6.392]
[1749492132827,5.42718114,156.37,156.35,6.392]
[1749492133129,6.43914279,156.38,156.35,6.392]
[1749492133328,5.42789109,156.37,156.35,6.392]
[1749492133530,6.43914279,156.38,156.35,6.392]
[1749492133731,5.42773995,156.37,156.35,6.392]
[1749492134029,6.43914279,156.38,156.35,6.392]
[1749492134230,5.42715411,156.37,156.36,6.3918]
[1749492134830,5.42715411,156.37,156.35,6.392]
[1749492135130,6.43924279,156.38,156.35,6.392]
[1749492135333,5.42790698,156.37,156.35,6.392]
[1749492135537,6.43924279,156.38,156.35,6.392]
[1749492135729,5.42835683,156.37,156.36,6.3918]
[1749492136938,0.04794279,156.38,156.37,6.3914]
[1749492137133,0.04794279,156.38,156.37,13.9958517]
[1749492137326,5.44348136,156.42,156.37,7.6044517]
[1749492137532,5.44348136,156.41,156.4,13.9946517]
[1749492137733,263.61594297,156.45,156.4,13.9946517]
[1749492138034,5.44236971,156.44,156.4,13.9946517]
[1749492138231,11.83166971,156.43,156.4,14.03509809]
[1749492138431,5.44236971,156.42,156.4,14.03509809]
[1749492138628,6.3893,156.43,156.4,14.03509809]
[1749492138826,5.4413118,156.42,156.41,6.3898]
[1749492139429,0.04708867,156.44,156.4,7.64489809]
[1749492139633,5.45698417,156.43,156.42,7.6044517]
[1749492140437,5.45698417,156.43,156.4,7.64489809]
[1749492140639,6.389,156.43,156.4,14.03469809]
[1749492140839,0.04708867,156.44,156.4,7.64489809]
[1749492141039,5.45698119,156.43,156.4,7.64489809]
[1749492141228,6.3892,156.43,156.4,14.03489809]
[1749492142032,0.04708867,156.44,156.4,7.64489809]
[1749492142239,13.06090743,156.43,156.4,0.04044639]
[1749492142539,6.3898,156.41,156.4,0.04044639]
[1749492142734,11.84625573,156.41,156.4,0.04044639]
[1749492143836,7.6044517,156.43,156.4,0.04044639]
[1749492143837,6.3896,156.42,156.4,0.04044639]
[1749492144144,5.45493271,156.41,156.4,0.04044639]
[1749492144643,11.84473271,156.41,156.4,0.04044639]
[1749492147643,11.84292521,156.41,156.4,0.04044639]
[1749492147845,11.84292115,156.41,156.4,0.04044639]
[1749492148343,6.3898,156.41,156.4,0.04044639]
[1749492149642,11.84479439,156.41,156.4,0.04044639]
[1749492150743,6.3921,156.36,156.33,34.5732]
[1749492150948,7.6044517,156.39,156.33,38.6928]
[1749492151138,5.45371422,156.38,156.33,38.6928]
[1749492151343,6.392,156.36,156.33,38.6928]
[1749492151745,6.43878754,156.36,156.33,38.7360281]
[1749492152147,6.3923,156.35,156.33,32.3432281]
[1749492152446,0.04678754,156.36,156.33,0.0432281]
[1749492152746,13.05689578,156.35,156.29,32.32]
[1749492152943,7.6044517,156.35,156.29,32.32]
[1749492153446,6.3935,156.32,156.29,38.7145]
[1749492153849,6.4355728,156.32,156.29,38.75730409]
[1749492154845,0.0420728,156.32,156.29,0.04280409]
[1749492155350,6.3941,156.31,156.29,0.04280409]
[1749492155650,0.0420728,156.32,156.29,0.04280409]
[1749492155848,6.3941,156.31,156.29,0.04280409]
[1749492157748,0.0420728,156.32,156.29,0.04280409]
[1749492157947,0.0420728,156.32,156.3,6.3941]
[1749492158255,0.0420728,156.32,156.29,0.04280409]
[1749492158643,0.0420728,156.32,156.31,6.3939]
[1749492158951,0.0420728,156.32,156.3,39.9244517]
[1749492159147,0.0420728,156.32,156.3,46.3185517]
[1749492160047,0.0420728,156.32,156.31,6.3939]
[1749492163848,5.41082521,156.38,156.31,2.1743]
[1749492164044,5.41082521,156.38,156.32,7.6044517]
[1749492164445,6.3917,156.37,156.34,6.3925]
[1749492164856,6.44011769,156.37,156.34,6.43319704]
[1749492167161,0.04841769,156.37,156.34,0.04069704]
[1749492167360,5.42721111,156.36,156.34,0.04069704]
[1749492167853,7.65286939,156.37,156.34,0.04069704]
[1749492168159,6.3922,156.35,156.34,0.04069704]
[1749492169856,11.81938179,156.35,156.34,0.04069704]
[1749492170862,6.3936,156.32,156.27,39.9244517]
[1749492171060,7.6044517,156.33,156.27,39.9244517]
[1749492171260,7.6044517,156.33,156.27,46.3196517]
[1749492171462,6.3941,156.31,156.27,39.9244517]
[1749492171658,6.43922258,156.31,156.27,39.96668956]
[1749492172765,6.43922258,156.31,156.28,6.395]
[1749492174658,6.3943,156.3,156.28,6.395]
[1749492176966,6.43912258,156.31,156.28,6.395]
[1749492177459,0.04512258,156.31,156.29,6.3944]
[1749492177665,0.04512258,156.31,156.29,7.6044517]
[1749492178153,492.4,156.41,156.29,7.6044517]
[1749492178154,39.9244517,156.42,156.29,7.6044517]
[1749492178358,5.40816784,156.41,156.34,7.6044517]
[1749492178655,13.01261954,156.4,156.34,7.6044517]
[1749492178858,5.40816784,156.39,156.33,32.32]
[1749492179058,6.3918,156.37,156.34,0.04164107]
[1749492179862,6.43845553,156.38,156.34,0.04164107]
[1749492180257,6.43845553,156.38,156.36,6.3918]
[1749492180561,0.04725553,156.38,156.36,6.3918]
[1749492180756,0.04725553,156.38,156.37,6.3914]
[1749492181165,0.04725553,156.38,156.34,7.64609277]
[1749492181363,0.04725553,156.38,156.36,6.3915]
[1749492181564,0.04725553,156.38,156.34,7.64609277]
[1749492182364,0.04725553,156.38,156.37,6.3914]
[1749492182564,7.6044517,156.44,156.37,32.3]
[1749492182763,5.42627067,156.43,156.38,7.6044517]
[1749492182957,5.42627067,156.42,156.4,6.3899]
[1749492183258,6.3892,156.43,156.4,6.3899]
[1749492183558,11.81687137,156.42,156.4,6.3899]
[1749492183759,6.3894,156.42,156.4,6.43792574]
[1749492183964,0.0467441,156.43,156.41,6.3897]
[1749492184164,5.42722056,156.42,156.41,6.3897]
[1749492184362,0.0467441,156.43,156.4,7.65247744]
[1749492184560,5.47396466,156.43,156.4,7.65247744]
[1749492184762,0.0467441,156.43,156.4,7.65247744]
[1749492184965,0.0467441,156.43,156.41,6.3898]
[1749492184966,5.47396466,156.43,156.41,6.3898]
[1749492185166,0.0467441,156.43,156.4,0.04802574]
[1749492185563,0.0467441,156.43,156.41,6.3898]
[1749492186965,0.0467441,156.43,156.4,0.04802574]
[1749492186966,5.49194807,156.43,156.4,0.04802574]
[1749492187168,0.0467441,156.43,156.4,0.04802574]
[1749492187868,0.0467441,156.43,156.41,6.3895]
[1749492188057,0.0467441,156.43,156.4,0.04802574]
[1749492188458,0.0467441,156.43,156.42,6.3894]
[1749492189070,0.0467441,156.43,156.41,6.3896]
[1749492189865,0.0467441,156.43,156.4,6.43802574]
[1749492190267,0.0467441,156.43,156.4,0.04802574]
[1749492190969,0.0467441,156.43,156.41,6.3897]
[1749492191463,6.4357441,156.43,156.41,6.3897]
[1749492191667,6.4357441,156.43,156.4,6.43802574]
[1749492195078,6.4357441,156.43,156.4,6.43792574]
[1749492196676,6.4357441,156.43,156.41,6.3897]
[1749492198277,6.4357441,156.43,156.4,6.43812574]
[1749492198974,6.3896,156.42,156.4,0.04802574]
[1749492199182,0.0467441,156.43,156.4,0.04802574]
[1749492199378,7.6511958,156.43,156.4,0.04802574]
[1749492199978,6.3898,156.41,156.4,0.04802574]
[1749492200978,7.6511958,156.43,156.4,0.04802574]
[1749492200979,6.3895,156.42,156.4,0.04802574]
[1749492201478,0.0467441,156.43,156.4,0.04802574]
[1749492201479,6.3898,156.41,156.4,0.04802574]
[1749492210377,13.9942517,156.41,156.4,0.04802574]
[1749492210578,7.6044517,156.39,156.33,400.52]
[1749492210881,7.6044517,156.39,156.33,32.3]
[1749492211081,6.3921,156.36,156.33,32.3]
[1749492211378,7.6044517,156.39,156.33,32.3]
[1749492211584,5.49558989,156.38,156.34,0.04433996]
[1749492211885,0.04216483,156.38,156.34,0.04433996]
[1749492212478,0.04216483,156.38,156.34,6.43693996]
[1749492212982,6.3919,156.36,156.34,0.04433996]
[1749492213383,6.43336483,156.38,156.34,0.04433996]
[1749492213587,6.43336483,156.38,156.35,6.392]
[1749492213785,0.04216483,156.38,156.35,6.392]
[1749492214190,6.43336483,156.38,156.35,6.392]
[1749492214880,6.3915,156.37,156.35,6.392]
[1749492215081,0.04216483,156.38,156.35,6.392]
[1749492215282,0.04216483,156.38,156.34,0.04433996]
[1749492215482,6.3915,156.37,156.34,0.04433996]
[1749492215683,0.04216483,156.38,156.35,6.3922]
[1749492215887,0.04216483,156.38,156.34,0.04433996]
[1749492216282,0.04216483,156.38,156.36,6.3914]
[1749492216685,0.04216483,156.38,156.34,0.04433996]
[1749492216881,6.43336483,156.38,156.35,6.3919]
[1749492217281,6.43336483,156.38,156.34,0.04433996]
[1749492219088,6.43336483,156.38,156.36,6.3916]
[1749492219689,0.04216483,156.38,156.36,6.3916]
[1749492220089,0.04216483,156.38,156.37,6.3914]
[1749492220291,5.49136014,156.38,156.37,6.3914]
[1749492220695,0.04216483,156.38,156.37,46.2958517]
[1749492220892,38.23325263,156.45,156.37,39.9044517]
[1749492221191,5.45546172,156.44,156.39,7.6044517]
[1749492221391,5.45546172,156.43,156.41,6.3896]
[1749492221592,5.45546172,156.42,156.39,7.6044517]
[1749492221794,5.45546172,156.41,156.39,7.6476008]
[1749492221989,6.43180962,156.42,156.39,14.0378008]
[1749492222187,5.45805543,156.41,156.39,14.0378008]
[1749492222391,6.43180962,156.42,156.39,14.0378008]
[1749492222591,5.4611967,156.41,156.39,14.0378008]
[1749492222790,6.43180962,156.42,156.4,6.3901]
[1749492222989,5.46120316,156.41,156.4,6.3901]
[1749492224088,11.85100316,156.41,156.39,6.4336491]
[1749492224294,5.46202318,156.4,156.39,0.0431491]
[1749492224796,11.85222318,156.4,156.39,0.0431491]
[1749492225395,17.78547581,156.4,156.39,0.0431491]
[1749492226195,11.85222318,156.4,156.39,0.0431491]
[1749492226395,17.78547581,156.4,156.39,0.0431491]
[1749492226795,11.85222318,156.4,156.39,0.0431491]
[1749492228495,5.46202318,156.4,156.39,0.0431491]
[1749492230399,5.46202318,156.4,156.39,6.4337491]
[1749492232996,0.04210962,156.42,156.39,6.4337491]
[1749492232997,0.04210962,156.42,156.41,6.3898]
[1749492233203,5.50569989,156.42,156.41,6.3898]
[1749492236205,0.04210962,156.42,156.41,13.9942517]
[1749492237800,12.32075263,156.47,156.44,6.3883]
[1749492237998,5.47308512,156.46,156.43,7.6044517]
[1749492238198,5.47308512,156.45,156.43,39.9044517]
[1749492238402,5.47308512,156.44,156.35,161.0580015]
[1749492238607,5.47308512,156.43,156.39,7.6044517]
[1749492238910,5.47308512,156.42,156.4,6.3902]
[1749492239104,6.43225951,156.43,156.39,7.64898273]
[1749492239310,5.46998287,156.42,156.39,0.04453103]
[1749492239507,5.46998287,156.41,156.39,0.04453103]
[1749492239706,0.04305951,156.43,156.39,7.64898273]
[1749492239906,5.48033541,156.42,156.39,7.64898273]
[1749492240099,5.48033541,156.41,156.39,7.64898273]
[1749492240303,0.04305951,156.43,156.39,7.64898273]
[1749492240505,5.48030734,156.42,156.39,7.64898273]
[1749492240702,0.04305951,156.43,156.39,7.64898273]
[1749492240703,0.04305951,156.43,156.4,32.3]
[1749492240907,5.48323507,156.42,156.41,6.3898]
[1749492241510,5.48323507,156.42,156.41,13.9942517]
[1749492241710,0.04305951,156.43,156.42,6.3894]
[1749492241911,5.52642783,156.43,156.42,6.3894]
[1749492242105,0.04305951,156.43,156.42,6.3894]
[1749492242908,5.52609013,156.43,156.41,6.3896]
[1749492243110,0.04305951,156.43,156.41,6.3896]
[1749492243510,0.04305951,156.43,156.42,6.3894]
[1749492243809,5.5235552,156.43,156.4,39.9044517]
[1749492244009,5.48305497,156.42,156.41,6.3898]
[1749492244520,0.04305951,156.43,156.42,6.3894]
[1749492244817,5.51961578,156.43,156.4,39.9044517]
[1749492245016,0.04305951,156.43,156.4,39.9044517]
[1749492245220,0.04305951,156.43,156.41,6.3894]
[1749492245523,6.43215951,156.43,156.41,6.3894]
[1749492246115,5.47355062,156.42,156.41,6.3894]
[1749492247314,5.47355062,156.42,156.4,32.3]
[1749492247621,0.04305951,156.43,156.4,32.3]
[1749492247817,5.47254959,156.42,156.4,32.3]
[1749492248123,6.3896,156.42,156.4,38.69]
[1749492248722,0.04305951,156.43,156.41,6.3898]
[1749492248926,5.47271191,156.42,156.41,6.3898]
[1749492249423,0.04305951,156.43,156.41,6.3898]
[1749492249626,5.47344076,156.42,156.4,38.6901]
[1749492249824,0.04305951,156.43,156.4,38.6901]
[1749492250022,5.47255112,156.42,156.4,32.3]
[1749492250219,0.04305951,156.43,156.41,6.3896]
[1749492250424,0.04305951,156.43,156.4,32.3]
[1749492250823,0.04305951,156.43,156.41,6.3896]
[1749492251627,0.04305951,156.43,156.42,6.3894]
[1749492254130,5.51400861,156.43,156.39,32.34453103]
[1749492254327,0.04305951,156.43,156.39,39.94898273]
[1749492254529,0.04305951,156.43,156.39,32.34453103]
[1749492254721,0.04305951,156.43,156.39,0.04453103]
[1749492254922,7.6044517,156.42,156.39,0.04453103]
[1749492255229,6.3902,156.4,156.39,0.04453103]
[1749492256634,11.86504447,156.4,156.39,0.04453103]
[1749492257229,6.3902,156.4,156.39,0.04453103]
[1749492259222,11.87093598,156.4,156.39,0.04453103]
[1749492267029,5.48073598,156.4,156.39,0.04453103]
[1749492267234,0.04305951,156.43,156.39,0.04453103]
[1749492267435,5.46043773,156.42,156.39,6.43483103]
[1749492267639,5.46043773,156.41,156.39,0.04453103]
[1749492267837,0.04305951,156.43,156.39,0.04453103]
[1749492268026,5.46023088,156.42,156.39,0.04453103]
[1749492268231,6.3898,156.41,156.39,0.04453103]
[1749492268433,0.04305951,156.43,156.39,6.43503103]
[1749492268629,0.04305951,156.43,156.39,0.04453103]
[1749492269137,0.04305951,156.43,156.39,6.43493103]
[1749492269439,6.3895,156.42,156.39,6.43493103]
[1749492269838,6.3895,156.42,156.4,6.3901]
[1749492269839,5.45985741,156.41,156.4,6.3901]
[1749492270026,5.45985741,156.41,156.39,0.04453103]
[1749492270027,11.84965741,156.41,156.39,0.04453103]
[1749492270231,6.3898,156.41,156.39,0.04453103]
[1749492270534,0.04305951,156.43,156.39,0.04453103]
[1749492270736,5.45728155,156.42,156.39,0.04453103]
[1749492270935,5.45728155,156.41,156.39,0.04453103]
[1749492271236,6.3896,156.42,156.39,6.43493103]
[1749492271436,5.46488027,156.41,156.39,6.43493103]
[1749492271635,6.3896,156.42,156.39,6.43493103]
[1749492271840,5.46547072,156.41,156.39,6.43493103]
[1749492272029,6.3898,156.41,156.39,6.43493103]
[1749492272227,0.04305951,156.43,156.39,0.04453103]
[1749492272430,5.46651708,156.42,156.39,0.04453103]
[1749492272631,11.85661708,156.41,156.39,0.04453103]
[1749492272826,5.46651708,156.4,156.39,0.04453103]
[1749492273232,11.85661708,156.4,156.39,0.04453103]
[1749492277235,5.46651708,156.4,156.39,0.04453103]
[1749492278738,11.85661708,156.4,156.39,0.04453103]
[1749492279940,5.46651708,156.4,156.39,0.04453103]
[1749492280141,5.46651708,156.4,156.39,6.43503103]
[1749492280530,0.04305951,156.43,156.39,7.64898273]
[1749492280730,5.46560388,156.42,156.41,13.9941517]
[1749492280947,0.04305951,156.43,156.41,7.6044517]
[1749492281334,0.04305951,156.43,156.42,6.3893]
[1749492281535,5.5076988,156.43,156.42,6.3893]
[1749492282743,0.04305951,156.43,156.42,6.3893]
[1749492282936,5.50755901,156.43,156.42,6.3893]
[1749492283141,5.50755901,156.43,156.41,13.9939517]
[1749492283341,0.04305951,156.43,156.4,32.56]
[1749492283836,6.3893,156.42,156.4,38.9499]
[1749492284439,6.43215951,156.43,156.4,38.9499]
[1749492285134,6.43215951,156.43,156.41,7.6044517]
[1749492285135,0.04305951,156.43,156.41,7.6044517]
[1749492286145,0.04305951,156.43,156.42,6.3893]
[1749492286743,0.04305951,156.43,156.42,13.9937517]
[1749492287141,0.04305951,156.43,156.42,6.3893]
[1749492287342,0.04305951,156.43,156.41,13.9939517]
[1749492287531,0.04305951,156.43,156.41,7.6044517]
[1749492287732,0.04305951,156.43,156.42,6.3893]
[1749492288744,0.04305951,156.43,156.41,13.9939517]
[1749492288942,6.43205951,156.43,156.41,13.9939517]
[1749492289339,0.04305951,156.43,156.41,13.9939517]
[1749492289835,0.04305951,156.43,156.41,7.6044517]
[1749492290645,6.43195951,156.43,156.41,13.9939517]
[1749492291140,0.04305951,156.43,156.41,7.6044517]
[1749492291835,0.04305951,156.43,156.4,46.5543517]
[1749492292041,5.48340518,156.42,156.4,46.5543517]
[1749492292335,6.3896,156.42,156.4,40.1644517]
[1749492293146,6.43215951,156.43,156.4,46.5545517]
[1749492293444,6.43215951,156.43,156.4,32.56]
[1749492293644,6.43215951,156.43,156.4,38.9499]
[1749492295651,6.3895,156.42,156.4,32.56]
[1749492296852,6.43215951,156.43,156.4,38.9498]
[1749492297151,5.4759152,156.42,156.4,38.9498]
[1749492297344,6.3894,156.42,156.4,38.9498]
[1749492299950,6.3894,156.42,156.4,32.56]
[1749492300152,6.3897,156.41,156.4,32.56]
[1749492300451,0.04305951,156.43,156.4,32.56]
[1749492300752,11.86339751,156.42,156.4,32.56]
[1749492300954,6.3896,156.42,156.4,38.9501]
[1749492302061,6.43215951,156.43,156.4,38.9501]
[1749492302256,5.47826237,156.42,156.4,38.9501]
[1749492302458,0.04305951,156.43,156.4,38.9501]
[1749492302757,5.47830842,156.42,156.39,0.04453103]
[1749492303056,7.6044517,156.4,156.34,32.4]
[1749492303251,6.3922,156.35,156.34,32.4]
[1749492303455,6.3922,156.35,156.32,7.6044517]
[1749492303456,7.6044517,156.38,156.31,32.4]
[1749492303657,5.48000106,156.37,156.31,32.4]
[1749492303854,5.48000106,156.36,156.31,32.4]
[1749492304047,0.04739458,156.35,156.32,0.04273255]
[1749492304249,6.3928,156.34,156.32,0.04273255]
[1749492304454,0.04739458,156.35,156.32,0.04273255]
[1749492304658,5.47690603,156.34,156.32,0.04273255]
[1749492304848,6.393,156.33,156.32,0.04273255]
[1749492305661,6.3943,156.3,156.28,32.4]
[1749492305856,7.6044517,156.32,156.25,40.0244517]
[1749492306061,9.8083517,156.32,156.25,32.42]
[1749492306252,6.3949,156.29,156.26,6.3957]
[1749492306456,6.3949,156.29,156.25,32.42]
[1749492306663,6.44225295,156.29,156.25,32.46778606]
[1749492307963,6.44225295,156.29,156.26,6.3959]
[1749492308764,0.04735295,156.29,156.25,32.46778606]
[1749492309372,0.04735295,156.29,156.25,0.04778606]
[1749492310369,6.3951,156.28,156.25,6.44388606]
[1749492310570,6.3951,156.28,156.25,0.04778606]
[1749492311975,6.3956,156.27,156.25,0.04778606]